[Event "Titled Tuesday Blitz January 10 Early 2023"]
[White "Gaitan, Juan Manuel"]
[Black "Borges Feria, Yasel"]
[WhiteFideId "121657"]
[BlackFideId "3504921"]
[WhiteElo "2328"]
[BlackElo "2439"]
[Result "1-0"]
[Round "10"]
[TimeControl "180+2"]
[Date "2023.01.10"]
[WhiteClock "0:00:21"]
[BlackClock "0:00:32"]

1. d4 {[%clk 0:02:48]}  Nf6 {[%clk 0:02:59]} 2. c4 {[%clk 0:02:44]}  e6 {[%clk 0:02:58]} 3. Nf3 {[%clk 0:02:44]}  Bb4+ {[%clk 0:02:57]} 4. Nbd2 {[%clk 0:02:42]}  O-O {[%clk 0:02:54]} 5. a3 {[%clk 0:02:38]}  Be7 {[%clk 0:02:54]} 6. e4 {[%clk 0:02:38]}  d5 {[%clk 0:02:55]} 7. e5 {[%clk 0:02:38]}  Nfd7 {[%clk 0:02:55]} 8. h4 {[%clk 0:02:33]}  c5 {[%clk 0:02:54]} 9. Bd3 {[%clk 0:02:32]}  h6 {[%clk 0:02:54]} 10. Nb3 {[%clk 0:02:13]}  cxd4 {[%clk 0:02:35]} 11. cxd5 {[%clk 0:02:13]}  exd5 {[%clk 0:02:31]} 12. Nbxd4 {[%clk 0:02:09]}  Re8 {[%clk 0:02:21]} 13. O-O {[%clk 0:01:56]}  Bxh4 {[%clk 0:02:17]} 14. Nf5 {[%clk 0:01:52]}  Be7 {[%clk 0:02:09]} 15. Bc2 {[%clk 0:01:48]}  Nf8 {[%clk 0:01:55]} 16. Qd3 {[%clk 0:01:42]}  Nc6 {[%clk 0:01:47]} 17. Re1 {[%clk 0:01:40]}  Be6 {[%clk 0:01:36]} 18. Bf4 {[%clk 0:01:16]}  Qd7 {[%clk 0:01:36]} 19. Nxe7+ {[%clk 0:01:09]}  Nxe7 {[%clk 0:01:35]} 20. Nd4 {[%clk 0:01:08]}  Nc6 {[%clk 0:01:28]} 21. Ba4 {[%clk 0:01:07]}  Nxe5 {[%clk 0:01:03]} 22. Qc2 {[%clk 0:00:50]}  Nc6 {[%clk 0:01:03]} 23. Nxc6 {[%clk 0:00:49]}  Rac8 {[%clk 0:00:49]} 24. Nd4 {[%clk 0:00:41]}  Rxc2 {[%clk 0:00:50]} 25. Bxd7 {[%clk 0:00:41]}  Rec8 {[%clk 0:00:41]} 26. Bxc8 {[%clk 0:00:28]}  Rxc8 {[%clk 0:00:41]} 27. Rac1 {[%clk 0:00:28]}  Rd8 {[%clk 0:00:40]} 28. Rc7 {[%clk 0:00:26]}  b6 {[%clk 0:00:38]} 29. Rxa7 {[%clk 0:00:26]}  Rc8 {[%clk 0:00:38]} 30. Rc7 {[%clk 0:00:26]}  Ra8 {[%clk 0:00:38]} 31. Rb7 {[%clk 0:00:25]}  Ra4 {[%clk 0:00:38]} 32. Nxe6 {[%clk 0:00:23]}  fxe6 {[%clk 0:00:37]} 33. Be5 {[%clk 0:00:23]}  Rg4 {[%clk 0:00:35]} 34. f3 {[%clk 0:00:23]}  Rg5 {[%clk 0:00:35]} 35. Bc3 {[%clk 0:00:23]}  Kh7 {[%clk 0:00:33]} 36. Kf2 {[%clk 0:00:22]}  h5 {[%clk 0:00:32]} 37. Re5 {[%clk 0:00:21]} 1-0


[Site "https://www.chess.com"]

[Event "Titled Tuesday Blitz January 10 Early 2023"]
[White "Krienke, Makaio"]
[Black "Begmuratov, Khumoyun"]
[WhiteFideId "2038854"]
[BlackFideId "14210207"]
[WhiteElo "2115"]
[BlackElo "2387"]
[Result "1-0"]
[Round "10"]
[TimeControl "180+2"]
[Date "2023.01.10"]
[WhiteClock "0:00:24"]
[BlackClock "0:00:04"]

1. e4 {[%clk 0:03:00]}  e5 {[%clk 0:02:59]} 2. Nf3 {[%clk 0:03:01]}  Nc6 {[%clk 0:02:59]} 3. Bb5 {[%clk 0:03:01]}  Nf6 {[%clk 0:02:58]} 4. O-O {[%clk 0:03:00]}  Nxe4 {[%clk 0:02:58]} 5. Re1 {[%clk 0:03:00]}  Nd6 {[%clk 0:02:58]} 6. Nxe5 {[%clk 0:02:58]}  Be7 {[%clk 0:02:56]} 7. Nxc6 {[%clk 0:02:53]}  dxc6 {[%clk 0:02:57]} 8. Bf1 {[%clk 0:02:51]}  O-O {[%clk 0:02:57]} 9. d3 {[%clk 0:02:51]}  Bf6 {[%clk 0:02:53]} 10. Nc3 {[%clk 0:02:50]}  Bf5 {[%clk 0:02:48]} 11. Bf4 {[%clk 0:02:49]}  Qd7 {[%clk 0:02:49]} 12. Be5 {[%clk 0:02:49]}  Bxe5 {[%clk 0:02:47]} 13. Rxe5 {[%clk 0:02:50]}  Rfe8 {[%clk 0:02:47]} 14. Rxe8+ {[%clk 0:02:48]}  Rxe8 {[%clk 0:02:46]} 15. Qd2 {[%clk 0:02:48]}  Qe7 {[%clk 0:02:45]} 16. h3 {[%clk 0:02:48]}  h6 {[%clk 0:02:41]} 17. Be2 {[%clk 0:02:47]}  Qf6 {[%clk 0:02:32]} 18. Bf3 {[%clk 0:02:47]}  Bxh3 {[%clk 0:02:28]} 19. Re1 {[%clk 0:02:41]}  Rxe1+ {[%clk 0:02:27]} 20. Qxe1 {[%clk 0:02:42]}  Be6 {[%clk 0:02:27]} 21. Na4 {[%clk 0:02:35]}  Bd5 {[%clk 0:02:17]} 22. Bxd5 {[%clk 0:02:24]}  cxd5 {[%clk 0:02:18]} 23. Qa5 {[%clk 0:02:24]}  Qd4 {[%clk 0:01:22]} 24. Qxc7 {[%clk 0:02:12]}  Qxa4 {[%clk 0:01:21]} 25. Qxd6 {[%clk 0:02:03]}  Qxa2 {[%clk 0:00:59]} 26. Qb8+ {[%clk 0:02:02]}  Kh7 {[%clk 0:00:59]} 27. Qxb7 {[%clk 0:01:57]}  Qb1+ {[%clk 0:00:51]} 28. Kh2 {[%clk 0:01:56]}  Qxc2 {[%clk 0:00:51]} 29. Qxd5 {[%clk 0:01:55]}  Qxf2 {[%clk 0:00:50]} 30. Qe4+ {[%clk 0:01:44]}  f5 {[%clk 0:00:43]} 31. Qe5 {[%clk 0:01:44]}  Kg6 {[%clk 0:00:34]} 32. Qe6+ {[%clk 0:01:42]}  Kh5 {[%clk 0:00:31]} 33. Qf7+ {[%clk 0:01:23]}  g6 {[%clk 0:00:30]} 34. Qb7 {[%clk 0:00:49]}  Kh4 {[%clk 0:00:17]} 35. Qb4+ {[%clk 0:00:47]}  f4 {[%clk 0:00:16]} 36. Qe7+ {[%clk 0:00:45]}  g5 {[%clk 0:00:14]} 37. Qe6 {[%clk 0:00:45]}  Qg3+ {[%clk 0:00:12]} 38. Kg1 {[%clk 0:00:45]}  h5 {[%clk 0:00:08]} 39. d4 {[%clk 0:00:37]}  Qg4 {[%clk 0:00:04]} 40. d5 {[%clk 0:00:34]}  Qd1+ {[%clk 0:00:03]} 41. Kh2 {[%clk 0:00:34]}  Qd3 {[%clk 0:00:03]} 42. Qh3+ {[%clk 0:00:26]}  Qxh3+ {[%clk 0:00:02]} 43. gxh3 {[%clk 0:00:27]}  g4 {[%clk 0:00:03]} 44. d6 {[%clk 0:00:27]}  f3 {[%clk 0:00:02]} 45. d7 {[%clk 0:00:27]}  g3+ {[%clk 0:00:02]} 46. Kg1 {[%clk 0:00:27]}  Kxh3 {[%clk 0:00:02]} 47. d8=Q {[%clk 0:00:27]}  f2+ {[%clk 0:00:02]} 48. Kf1 {[%clk 0:00:26]}  h4 {[%clk 0:00:03]} 49. Qg5 {[%clk 0:00:25]}  a6 {[%clk 0:00:03]} 50. b4 {[%clk 0:00:25]}  a5 {[%clk 0:00:03]} 51. bxa5 {[%clk 0:00:25]}  Kh2 {[%clk 0:00:04]} 52. Qxh4# {[%clk 0:00:24]} 1-0


[Site "https://www.chess.com"]

[Event "Titled Tuesday Blitz January 10 Early 2023"]
[White "Berezin, Viktor"]
[Black "Wagner, Dennis"]
[WhiteFideId "14107872"]
[BlackFideId "24650684"]
[WhiteElo "2307"]
[BlackElo "2595"]
[Result "1-0"]
[Round "10"]
[TimeControl "180+2"]
[Date "2023.01.10"]
[WhiteClock "0:00:39"]
[BlackClock "0:00:07"]

1. d4 {[%clk 0:02:54]}  Nf6 {[%clk 0:02:59]} 2. Nf3 {[%clk 0:02:53]}  g6 {[%clk 0:03:00]} 3. g3 {[%clk 0:02:52]}  Bg7 {[%clk 0:03:00]} 4. Bg2 {[%clk 0:02:51]}  O-O {[%clk 0:03:01]} 5. O-O {[%clk 0:02:51]}  d5 {[%clk 0:03:00]} 6. c4 {[%clk 0:02:50]}  dxc4 {[%clk 0:03:01]} 7. Na3 {[%clk 0:02:50]}  c3 {[%clk 0:03:01]} 8. bxc3 {[%clk 0:02:51]}  c5 {[%clk 0:03:02]} 9. e3 {[%clk 0:02:50]}  Nc6 {[%clk 0:03:00]} 10. Bb2 {[%clk 0:02:50]}  Be6 {[%clk 0:02:58]} 11. c4 {[%clk 0:02:45]}  Bf5 {[%clk 0:02:24]} 12. d5 {[%clk 0:02:37]}  Nb4 {[%clk 0:02:24]} 13. Nd2 {[%clk 0:02:23]}  Bd3 {[%clk 0:01:27]} 14. Re1 {[%clk 0:02:21]}  Qa5 {[%clk 0:01:22]} 15. Nb3 {[%clk 0:02:18]}  Qb6 {[%clk 0:01:16]} 16. Nc1 {[%clk 0:02:17]}  Be4 {[%clk 0:00:59]} 17. Bxe4 {[%clk 0:02:10]}  Nxe4 {[%clk 0:01:00]} 18. Bxg7 {[%clk 0:02:09]}  Kxg7 {[%clk 0:01:00]} 19. f3 {[%clk 0:01:54]}  Qf6 {[%clk 0:01:00]} 20. Nb3 {[%clk 0:01:38]}  Ng5 {[%clk 0:00:57]} 21. Kg2 {[%clk 0:01:36]}  Qb2+ {[%clk 0:00:50]} 22. Re2 {[%clk 0:01:31]}  Qxa3 {[%clk 0:00:50]} 23. h4 {[%clk 0:01:31]}  Nxf3 {[%clk 0:00:46]} 24. Kxf3 {[%clk 0:01:32]}  b6 {[%clk 0:00:42]} 25. Qd2 {[%clk 0:01:27]}  Rad8 {[%clk 0:00:30]} 26. Qc3+ {[%clk 0:01:26]}  f6 {[%clk 0:00:25]} 27. h5 {[%clk 0:01:25]}  e6 {[%clk 0:00:21]} 28. hxg6 {[%clk 0:01:20]}  hxg6 {[%clk 0:00:22]} 29. e4 {[%clk 0:01:17]}  a5 {[%clk 0:00:22]} 30. Rh1 {[%clk 0:01:11]}  Rh8 {[%clk 0:00:17]} 31. Reh2 {[%clk 0:00:47]}  Rxh2 {[%clk 0:00:15]} 32. Rxh2 {[%clk 0:00:48]}  a4 {[%clk 0:00:11]} 33. Qe3 {[%clk 0:00:48]}  g5 {[%clk 0:00:12]} 34. e5 {[%clk 0:00:43]}  axb3 {[%clk 0:00:11]} 35. exf6+ {[%clk 0:00:43]}  Kxf6 {[%clk 0:00:11]} 36. Rh6+ {[%clk 0:00:42]}  Kf7 {[%clk 0:00:07]} 37. Qxe6+ {[%clk 0:00:41]}  Kg7 {[%clk 0:00:07]} 38. Qf6+ {[%clk 0:00:39]} 1-0


[Site "https://www.chess.com"]

[Event "Titled Tuesday Blitz January 10 Early 2023"]
[White "Kuznetsova, Olga"]
[Black "Arabidze, Meri"]
[WhiteFideId "4191323"]
[BlackFideId "13604040"]
[WhiteElo "2142"]
[BlackElo "2441"]
[Result "0-1"]
[Round "10"]
[TimeControl "180+2"]
[Date "2023.01.10"]
[WhiteClock "0:00:19"]
[BlackClock "0:00:16"]

1. d4 {[%clk 0:03:00]}  Nf6 {[%clk 0:03:00]} 2. Nd2 {[%clk 0:02:59]}  d5 {[%clk 0:03:00]} 3. Ngf3 {[%clk 0:02:58]}  c5 {[%clk 0:02:58]} 4. dxc5 {[%clk 0:02:58]}  Na6 {[%clk 0:02:55]} 5. Nb3 {[%clk 0:02:58]}  e6 {[%clk 0:02:52]} 6. Be3 {[%clk 0:02:56]}  Ne4 {[%clk 0:02:45]} 7. c3 {[%clk 0:02:45]}  Be7 {[%clk 0:02:45]} 8. g3 {[%clk 0:02:43]}  O-O {[%clk 0:02:44]} 9. Bg2 {[%clk 0:02:44]}  Naxc5 {[%clk 0:02:39]} 10. Nxc5 {[%clk 0:02:43]}  Bxc5 {[%clk 0:02:37]} 11. Bxc5 {[%clk 0:02:43]}  Nxc5 {[%clk 0:02:38]} 12. O-O {[%clk 0:02:43]}  b6 {[%clk 0:02:38]} 13. Qc2 {[%clk 0:02:38]}  Ba6 {[%clk 0:02:35]} 14. Rad1 {[%clk 0:02:37]}  Qf6 {[%clk 0:02:31]} 15. Rfe1 {[%clk 0:02:18]}  Rac8 {[%clk 0:02:31]} 16. Qd2 {[%clk 0:02:00]}  h6 {[%clk 0:02:24]} 17. Qd4 {[%clk 0:01:59]}  Qxd4 {[%clk 0:02:19]} 18. Nxd4 {[%clk 0:01:59]}  Na4 {[%clk 0:02:17]} 19. Rd2 {[%clk 0:01:59]}  Rc7 {[%clk 0:02:05]} 20. e4 {[%clk 0:01:57]}  dxe4 {[%clk 0:02:00]} 21. Bxe4 {[%clk 0:01:57]}  Nc5 {[%clk 0:01:57]} 22. Bc2 {[%clk 0:01:54]}  g6 {[%clk 0:01:38]} 23. Red1 {[%clk 0:01:49]}  e5 {[%clk 0:01:25]} 24. Nf3 {[%clk 0:01:44]}  e4 {[%clk 0:01:25]} 25. Nd4 {[%clk 0:01:38]}  Nd3 {[%clk 0:01:19]} 26. Bxd3 {[%clk 0:01:29]}  exd3 {[%clk 0:01:19]} 27. Re1 {[%clk 0:01:28]}  Rc5 {[%clk 0:01:13]} 28. Re3 {[%clk 0:01:26]}  Rd8 {[%clk 0:01:00]} 29. f4 {[%clk 0:01:23]}  Rc7 {[%clk 0:00:54]} 30. Kf2 {[%clk 0:01:22]}  Bc4 {[%clk 0:00:53]} 31. a3 {[%clk 0:01:21]}  a5 {[%clk 0:00:53]} 32. Nf3 {[%clk 0:01:20]}  f6 {[%clk 0:00:43]} 33. Nd4 {[%clk 0:01:20]}  Kf7 {[%clk 0:00:41]} 34. f5 {[%clk 0:01:19]}  gxf5 {[%clk 0:00:35]} 35. Nxf5 {[%clk 0:01:19]}  h5 {[%clk 0:00:36]} 36. Re4 {[%clk 0:01:11]}  b5 {[%clk 0:00:33]} 37. Rd4 {[%clk 0:01:02]}  Rxd4 {[%clk 0:00:32]} 38. Nxd4 {[%clk 0:01:02]}  a4 {[%clk 0:00:31]} 39. Rd1 {[%clk 0:01:00]}  Re7 {[%clk 0:00:29]} 40. Rd2 {[%clk 0:00:48]}  Re5 {[%clk 0:00:28]} 41. Kf3 {[%clk 0:00:47]}  Kg6 {[%clk 0:00:27]} 42. h4 {[%clk 0:00:45]}  Re1 {[%clk 0:00:27]} 43. Kf4 {[%clk 0:00:35]}  Rf1+ {[%clk 0:00:24]} 44. Ke3 {[%clk 0:00:36]}  Rg1 {[%clk 0:00:24]} 45. Kf2 {[%clk 0:00:35]}  Rh1 {[%clk 0:00:24]} 46. Nf3 {[%clk 0:00:35]}  Kf5 {[%clk 0:00:18]} 47. Ke3 {[%clk 0:00:34]}  Kg4 {[%clk 0:00:18]} 48. Rg2 {[%clk 0:00:27]}  Kh3 {[%clk 0:00:16]} 49. Rd2 {[%clk 0:00:18]}  Kxg3 {[%clk 0:00:16]} 50. Nd4 {[%clk 0:00:19]}  Re1+ {[%clk 0:00:16]} 0-1


[Site "https://www.chess.com"]

[Event "Titled Tuesday Blitz January 10 Early 2023"]
[White "Fernandez Garcia, Gumersindo"]
[Black "Dehtiarov, Roman"]
[WhiteFideId "24516740"]
[BlackFideId "14186640"]
[WhiteElo "2160"]
[BlackElo "2289"]
[Result "1/2-1/2"]
[Round "10"]
[TimeControl "180+2"]
[Date "2023.01.10"]
[WhiteClock "0:00:12"]
[BlackClock "0:00:14"]

1. Nf3 {[%clk 0:02:23]}  Nf6 {[%clk 0:02:42]} 2. d4 {[%clk 0:02:23]}  d5 {[%clk 0:02:39]} 3. c4 {[%clk 0:02:23]}  e6 {[%clk 0:02:39]} 4. Nc3 {[%clk 0:02:23]}  c6 {[%clk 0:02:36]} 5. g3 {[%clk 0:02:23]}  Be7 {[%clk 0:02:36]} 6. Bg2 {[%clk 0:02:24]}  O-O {[%clk 0:02:33]} 7. O-O {[%clk 0:02:24]}  dxc4 {[%clk 0:02:29]} 8. e4 {[%clk 0:02:23]}  b5 {[%clk 0:02:29]} 9. e5 {[%clk 0:02:16]}  Nd5 {[%clk 0:02:28]} 10. a4 {[%clk 0:02:17]}  b4 {[%clk 0:02:28]} 11. Ne4 {[%clk 0:02:17]}  a5 {[%clk 0:02:26]} 12. Bg5 {[%clk 0:02:14]}  Ba6 {[%clk 0:02:25]} 13. Bxe7 {[%clk 0:02:08]}  Qxe7 {[%clk 0:02:26]} 14. Nc5 {[%clk 0:02:02]}  Nd7 {[%clk 0:02:24]} 15. Nxa6 {[%clk 0:02:00]}  Rxa6 {[%clk 0:02:25]} 16. Qc2 {[%clk 0:01:57]}  N7b6 {[%clk 0:02:25]} 17. Nd2 {[%clk 0:01:57]}  c3 {[%clk 0:02:24]} 18. bxc3 {[%clk 0:01:54]}  Nxc3 {[%clk 0:02:25]} 19. Nb3 {[%clk 0:01:43]}  Nbd5 {[%clk 0:02:20]} 20. Rae1 {[%clk 0:01:31]}  Ra7 {[%clk 0:02:17]} 21. Nc5 {[%clk 0:01:30]}  Rb8 {[%clk 0:02:15]} 22. Qb3 {[%clk 0:01:20]}  Rd8 {[%clk 0:02:13]} 23. f4 {[%clk 0:01:19]}  Nb6 {[%clk 0:02:10]} 24. Ne4 {[%clk 0:00:59]}  Rxd4 {[%clk 0:02:08]} 25. Nxc3 {[%clk 0:00:58]}  Rd3 {[%clk 0:01:57]} 26. Rf3 {[%clk 0:00:54]}  Rxf3 {[%clk 0:01:55]} 27. Bxf3 {[%clk 0:00:51]}  Qc5+ {[%clk 0:01:55]} 28. Kg2 {[%clk 0:00:51]}  Qxc3 {[%clk 0:01:54]} 29. Qxc3 {[%clk 0:00:49]}  bxc3 {[%clk 0:01:55]} 30. Rb1 {[%clk 0:00:40]}  Rb7 {[%clk 0:01:51]} 31. Bxc6 {[%clk 0:00:39]}  Rb8 {[%clk 0:01:52]} 32. Be4 {[%clk 0:00:39]}  g6 {[%clk 0:01:50]} 33. Kf2 {[%clk 0:00:37]}  Kf8 {[%clk 0:01:47]} 34. Ke2 {[%clk 0:00:36]}  Ke7 {[%clk 0:01:43]} 35. Rb5 {[%clk 0:00:28]}  Kd7 {[%clk 0:01:33]} 36. Kd3 {[%clk 0:00:26]}  Kc7 {[%clk 0:01:26]} 37. Rc5+ {[%clk 0:00:20]}  Kd8 {[%clk 0:01:17]} 38. Rb5 {[%clk 0:00:20]}  Rc8 {[%clk 0:01:09]} 39. Kc2 {[%clk 0:00:20]}  Nxa4 {[%clk 0:01:07]} 40. Rxa5 {[%clk 0:00:19]}  Nb6 {[%clk 0:01:04]} 41. Ra3 {[%clk 0:00:18]}  Nc4 {[%clk 0:00:56]} 42. Rxc3 {[%clk 0:00:18]}  Ne3+ {[%clk 0:00:56]} 43. Kd3 {[%clk 0:00:18]}  Rxc3+ {[%clk 0:00:56]} 44. Kxc3 {[%clk 0:00:19]}  Nf1 {[%clk 0:00:56]} 45. Kd3 {[%clk 0:00:17]}  Nxh2 {[%clk 0:00:56]} 46. Ke2 {[%clk 0:00:16]}  h5 {[%clk 0:00:54]} 47. Bg2 {[%clk 0:00:15]}  Kc7 {[%clk 0:00:54]} 48. Bh3 {[%clk 0:00:15]}  Kb6 {[%clk 0:00:54]} 49. Bg2 {[%clk 0:00:14]}  Kc5 {[%clk 0:00:54]} 50. Ke3 {[%clk 0:00:14]}  Ng4+ {[%clk 0:00:54]} 51. Ke2 {[%clk 0:00:13]}  Nh6 {[%clk 0:00:53]} 52. Bb7 {[%clk 0:00:13]}  Kd4 {[%clk 0:00:44]} 53. Kf3 {[%clk 0:00:13]}  Kc5 {[%clk 0:00:41]} 54. Ba6 {[%clk 0:00:13]}  Kb6 {[%clk 0:00:41]} 55. Bc8 {[%clk 0:00:13]}  Kc7 {[%clk 0:00:41]} 56. Ba6 {[%clk 0:00:13]}  Kd8 {[%clk 0:00:40]} 57. Bb5 {[%clk 0:00:14]}  Ke7 {[%clk 0:00:39]} 58. Ba4 {[%clk 0:00:14]}  f6 {[%clk 0:00:39]} 59. exf6+ {[%clk 0:00:14]}  Kxf6 {[%clk 0:00:40]} 60. Ke4 {[%clk 0:00:14]}  Nf5 {[%clk 0:00:37]} 61. Kf3 {[%clk 0:00:14]}  Nh6 {[%clk 0:00:37]} 62. Bc2 {[%clk 0:00:14]}  Ng8 {[%clk 0:00:33]} 63. g4 {[%clk 0:00:14]}  Ne7 {[%clk 0:00:27]} 64. gxh5 {[%clk 0:00:12]}  gxh5 {[%clk 0:00:27]} 65. Kg3 {[%clk 0:00:13]}  Nf5+ {[%clk 0:00:27]} 66. Kf3 {[%clk 0:00:13]}  Ke7 {[%clk 0:00:26]} 67. Bd1 {[%clk 0:00:12]}  Kd6 {[%clk 0:00:24]} 68. Ke4 {[%clk 0:00:13]}  h4 {[%clk 0:00:19]} 69. Bg4 {[%clk 0:00:13]}  Ke7 {[%clk 0:00:18]} 70. Kf3 {[%clk 0:00:12]}  Kd6 {[%clk 0:00:18]} 71. Ke4 {[%clk 0:00:11]}  Ke7 {[%clk 0:00:19]} 72. Bh3 {[%clk 0:00:12]}  Kf6 {[%clk 0:00:19]} 73. Bg4 {[%clk 0:00:12]}  Nh6 {[%clk 0:00:17]} 74. Bh3 {[%clk 0:00:12]}  Nf5 {[%clk 0:00:16]} 75. Bg4 {[%clk 0:00:12]}  Ke7 {[%clk 0:00:14]} 1/2-1/2


[Site "https://www.chess.com"]

[Event "Titled Tuesday Blitz January 10 Early 2023"]
[White "Santos Ruiz, Miguel"]
[Black "Bilan, Danila"]
[WhiteFideId "22291482"]
[BlackFideId "24161918"]
[WhiteElo "2590"]
[BlackElo "2303"]
[Result "1-0"]
[Round "10"]
[TimeControl "180+2"]
[Date "2023.01.10"]
[WhiteClock "0:01:14"]
[BlackClock "0:00:03"]

1. e4 {[%clk 0:02:59]}  c6 {[%clk 0:02:59]} 2. d4 {[%clk 0:02:59]}  d5 {[%clk 0:02:58]} 3. exd5 {[%clk 0:03:00]}  cxd5 {[%clk 0:02:58]} 4. Nf3 {[%clk 0:03:01]}  Nf6 {[%clk 0:02:55]} 5. c3 {[%clk 0:03:02]}  Nc6 {[%clk 0:02:49]} 6. Bd3 {[%clk 0:03:00]}  Bg4 {[%clk 0:02:48]} 7. h3 {[%clk 0:03:00]}  Bh5 {[%clk 0:02:47]} 8. Bf4 {[%clk 0:03:00]}  e6 {[%clk 0:02:48]} 9. Nbd2 {[%clk 0:03:01]}  Bd6 {[%clk 0:02:47]} 10. Bxd6 {[%clk 0:03:01]}  Qxd6 {[%clk 0:02:47]} 11. O-O {[%clk 0:03:02]}  O-O {[%clk 0:02:47]} 12. Re1 {[%clk 0:03:03]}  a6 {[%clk 0:02:42]} 13. a4 {[%clk 0:03:03]}  Rab8 {[%clk 0:02:37]} 14. a5 {[%clk 0:03:02]}  b6 {[%clk 0:02:28]} 15. axb6 {[%clk 0:03:02]}  Rxb6 {[%clk 0:02:29]} 16. b4 {[%clk 0:03:02]}  Ra8 {[%clk 0:02:21]} 17. Nb3 {[%clk 0:02:59]}  Bg6 {[%clk 0:01:34]} 18. Bxg6 {[%clk 0:02:56]}  hxg6 {[%clk 0:01:35]} 19. Ne5 {[%clk 0:02:56]}  Ne4 {[%clk 0:01:28]} 20. Rxe4 {[%clk 0:02:46]}  dxe4 {[%clk 0:01:25]} 21. Nc4 {[%clk 0:02:46]}  Qc7 {[%clk 0:01:17]} 22. Nxb6 {[%clk 0:02:46]}  Qxb6 {[%clk 0:01:18]} 23. Nc5 {[%clk 0:02:47]}  a5 {[%clk 0:01:12]} 24. Nxe4 {[%clk 0:02:36]}  Rd8 {[%clk 0:01:11]} 25. bxa5 {[%clk 0:02:34]}  Nxa5 {[%clk 0:01:09]} 26. Qa4 {[%clk 0:02:35]}  Nc6 {[%clk 0:00:53]} 27. Qa6 {[%clk 0:02:29]}  Qxa6 {[%clk 0:00:43]} 28. Rxa6 {[%clk 0:02:28]}  Ne7 {[%clk 0:00:43]} 29. Ng5 {[%clk 0:02:15]}  Nd5 {[%clk 0:00:30]} 30. c4 {[%clk 0:02:08]}  Nf4 {[%clk 0:00:23]} 31. Kf1 {[%clk 0:01:35]}  Rb8 {[%clk 0:00:16]} 32. f3 {[%clk 0:01:27]}  f6 {[%clk 0:00:11]} 33. Nxe6 {[%clk 0:01:27]}  Rb1+ {[%clk 0:00:11]} 34. Kf2 {[%clk 0:01:27]}  Rb2+ {[%clk 0:00:11]} 35. Ke3 {[%clk 0:01:27]}  Nxg2+ {[%clk 0:00:11]} 36. Kd3 {[%clk 0:01:27]}  Ne1+ {[%clk 0:00:11]} 37. Kc3 {[%clk 0:01:27]}  Rc2+ {[%clk 0:00:11]} 38. Kb4 {[%clk 0:01:27]}  Nxf3 {[%clk 0:00:10]} 39. d5 {[%clk 0:01:25]}  Ne5 {[%clk 0:00:09]} 40. c5 {[%clk 0:01:23]}  g5 {[%clk 0:00:09]} 41. c6 {[%clk 0:01:19]}  Kh7 {[%clk 0:00:08]} 42. c7 {[%clk 0:01:19]}  Nd3+ {[%clk 0:00:06]} 43. Kb3 {[%clk 0:01:15]}  Rc1 {[%clk 0:00:04]} 44. Rc6 {[%clk 0:01:14]}  Rb1+ {[%clk 0:00:03]} 45. Kc3 {[%clk 0:01:14]} 1-0


[Site "https://www.chess.com"]

[Event "Titled Tuesday Blitz January 10 Early 2023"]
[White "Kosteniuk, Alexandra"]
[Black "Janaszak, Dawid"]
[WhiteFideId "4128125"]
[BlackFideId "1119206"]
[WhiteElo "2535"]
[BlackElo "2316"]
[Result "1/2-1/2"]
[Round "10"]
[TimeControl "180+2"]
[Date "2023.01.10"]
[WhiteClock "0:00:11"]
[BlackClock "0:00:08"]

1. e4 {[%clk 0:02:58]}  c5 {[%clk 0:03:00]} 2. c3 {[%clk 0:02:58]}  e5 {[%clk 0:03:00]} 3. Nf3 {[%clk 0:02:57]}  Nc6 {[%clk 0:03:00]} 4. Bc4 {[%clk 0:02:57]}  Nf6 {[%clk 0:03:00]} 5. Ng5 {[%clk 0:02:52]}  d5 {[%clk 0:03:00]} 6. exd5 {[%clk 0:02:51]}  Na5 {[%clk 0:03:00]} 7. d3 {[%clk 0:02:39]}  h6 {[%clk 0:02:57]} 8. Bb5+ {[%clk 0:02:31]}  Bd7 {[%clk 0:02:49]} 9. Bxd7+ {[%clk 0:02:28]}  Qxd7 {[%clk 0:02:50]} 10. Ne4 {[%clk 0:02:28]}  Nxd5 {[%clk 0:02:45]} 11. O-O {[%clk 0:02:28]}  Be7 {[%clk 0:02:42]} 12. Qh5 {[%clk 0:02:22]}  Nc6 {[%clk 0:02:37]} 13. Na3 {[%clk 0:02:11]}  O-O {[%clk 0:02:35]} 14. Rd1 {[%clk 0:01:54]}  f5 {[%clk 0:02:28]} 15. Ng3 {[%clk 0:01:54]}  Rad8 {[%clk 0:02:19]} 16. Nc2 {[%clk 0:01:26]}  Qe6 {[%clk 0:02:17]} 17. Re1 {[%clk 0:01:21]}  Nf6 {[%clk 0:02:07]} 18. Qe2 {[%clk 0:01:21]}  Qd7 {[%clk 0:01:53]} 19. f4 {[%clk 0:01:08]}  Qxd3 {[%clk 0:01:43]} 20. Qxd3 {[%clk 0:01:07]}  Rxd3 {[%clk 0:01:44]} 21. Nxf5 {[%clk 0:01:07]}  Bd8 {[%clk 0:01:08]} 22. fxe5 {[%clk 0:01:07]}  Ng4 {[%clk 0:01:08]} 23. Nfe3 {[%clk 0:01:04]}  Ngxe5 {[%clk 0:01:04]} 24. Nf1 {[%clk 0:01:04]}  Bb6 {[%clk 0:00:56]} 25. Be3 {[%clk 0:01:00]}  Nc4 {[%clk 0:00:53]} 26. b3 {[%clk 0:00:42]}  Rxc3 {[%clk 0:00:47]} 27. Rac1 {[%clk 0:00:27]}  Nxe3 {[%clk 0:00:47]} 28. Ncxe3 {[%clk 0:00:28]}  Rxc1 {[%clk 0:00:45]} 29. Rxc1 {[%clk 0:00:29]}  c4 {[%clk 0:00:41]} 30. Rxc4 {[%clk 0:00:28]}  Rxf1+ {[%clk 0:00:40]} 31. Kxf1 {[%clk 0:00:29]}  Bxe3 {[%clk 0:00:40]} 32. Re4 {[%clk 0:00:29]}  Bc5 {[%clk 0:00:34]} 33. Ke2 {[%clk 0:00:25]}  Kf7 {[%clk 0:00:33]} 34. Kd3 {[%clk 0:00:25]}  Bd6 {[%clk 0:00:31]} 35. g3 {[%clk 0:00:22]}  Be5 {[%clk 0:00:31]} 36. a3 {[%clk 0:00:21]}  Ke6 {[%clk 0:00:31]} 37. b4 {[%clk 0:00:15]}  a6 {[%clk 0:00:30]} 38. Rc4 {[%clk 0:00:14]}  Bd6 {[%clk 0:00:28]} 39. Ke4 {[%clk 0:00:14]}  h5 {[%clk 0:00:20]} 40. Rc1 {[%clk 0:00:12]}  g6 {[%clk 0:00:19]} 41. Rc2 {[%clk 0:00:12]}  g5 {[%clk 0:00:18]} 42. Rc4 {[%clk 0:00:11]}  h4 {[%clk 0:00:17]} 43. gxh4 {[%clk 0:00:10]}  gxh4 {[%clk 0:00:18]} 44. Ke3 {[%clk 0:00:10]}  Be7 {[%clk 0:00:15]} 45. Re4+ {[%clk 0:00:10]}  Kd5 {[%clk 0:00:14]} 46. Rg4 {[%clk 0:00:09]}  Ne5 {[%clk 0:00:13]} 47. Rg7 {[%clk 0:00:09]}  Ke6 {[%clk 0:00:10]} 48. Ke4 {[%clk 0:00:10]}  Nc6 {[%clk 0:00:09]} 49. Rg6+ {[%clk 0:00:09]}  Bf6 {[%clk 0:00:10]} 50. Rh6 {[%clk 0:00:10]}  b5 {[%clk 0:00:07]} 51. Rh7 {[%clk 0:00:09]}  Ne7 {[%clk 0:00:05]} 52. Rh6 {[%clk 0:00:09]}  Nf5 {[%clk 0:00:04]} 53. Rh7 {[%clk 0:00:08]}  Nd6+ {[%clk 0:00:04]} 54. Kd3 {[%clk 0:00:08]}  Kf5 {[%clk 0:00:02]} 55. Ra7 {[%clk 0:00:07]}  Be5 {[%clk 0:00:02]} 56. h3 {[%clk 0:00:07]}  Ne4 {[%clk 0:00:02]} 57. Rxa6 {[%clk 0:00:07]}  Nf2+ {[%clk 0:00:02]} 58. Ke2 {[%clk 0:00:07]}  Nxh3 {[%clk 0:00:03]} 59. a4 {[%clk 0:00:08]}  Nf4+ {[%clk 0:00:04]} 60. Kf3 {[%clk 0:00:07]}  bxa4 {[%clk 0:00:05]} 61. Rxa4 {[%clk 0:00:07]}  h3 {[%clk 0:00:05]} 62. Ra2 {[%clk 0:00:07]}  Ne6 {[%clk 0:00:05]} 63. Ke3 {[%clk 0:00:06]}  h2 {[%clk 0:00:05]} 64. Rxh2 {[%clk 0:00:05]}  Bxh2 {[%clk 0:00:05]} 65. Kd3 {[%clk 0:00:06]}  Bg1 {[%clk 0:00:05]} 66. Kc4 {[%clk 0:00:07]}  Ke4 {[%clk 0:00:06]} 67. Kb5 {[%clk 0:00:08]}  Nc7+ {[%clk 0:00:05]} 68. Kc6 {[%clk 0:00:08]}  Nd5 {[%clk 0:00:06]} 69. b5 {[%clk 0:00:08]}  Nb4+ {[%clk 0:00:06]} 70. Kc7 {[%clk 0:00:08]}  Nd5+ {[%clk 0:00:06]} 71. Kc6 {[%clk 0:00:09]}  Bb6 {[%clk 0:00:07]} 72. Kb7 {[%clk 0:00:09]}  Kd4 {[%clk 0:00:07]} 73. Kc6 {[%clk 0:00:10]}  Kc4 {[%clk 0:00:08]} 74. Kd6 {[%clk 0:00:10]}  Kxb5 {[%clk 0:00:08]} 75. Kxd5 {[%clk 0:00:11]} 1/2-1/2


[Site "https://www.chess.com"]